bitfinex/quotes_ETHUSD_20250923
["timestamp","ask_amount","ask_price","bid_price","bid_amount"]
[1758591242068,5.20529385,4192.4,4192.3,0.1232]
[1758591242264,5.72582324,4192.4,4192.3,0.1232]
[1758591243311,5.94824212,4192.4,4192.3,0.1232]
[1758591243480,1.37329751,4192.4,4192.3,0.1232]
[1758591243669,4.73761273,4192.4,4192.3,2.50852547]
[1758591244676,4.51519385,4192.4,4192.3,2.50852547]
[1758591246001,4.51619385,4192.4,4192.3,2.50852547]
[1758591246203,0.51019385,4192.4,4192.3,2.50852547]
[1758591246403,2.878,4192.4,4192.3,3.86057162]
[1758591246574,2.878,4192.4,4192.3,3.83671837]
[1758591246973,2.878,4192.4,4192.3,3.79191837]
[1758591247194,0.001,4192.4,4192.3,3.79191837]
[1758591247672,0.6911,4192.4,4192.3,2.50852547]
[1758591247900,0.6911,4192.4,4192.3,0.1232]
[1758591248085,1.20420979,4192.4,4192.3,0.1232]
[1758591248909,1.42691397,4192.4,4192.3,0.004]
[1758591249069,5.74693921,4192.4,4192.3,0.004]
[1758591249270,5.10625443,4192.4,4192.3,0.004]
[1758591249472,8.34433061,4192.4,4192.3,0.004]
[1758591249709,7.49152301,4192.4,4192.3,0.004]
[1758591250214,8.77027592,4192.4,4192.3,0.004]
[1758591251409,5.38532547,4192.3,4192.1,0.02]
[1758591251608,2.38555309,4191.9,4191.8,0.004]
[1758591251810,29.83644297,4191.9,4191.8,0.004]
[1758591252014,2.38578074,4191.5,4190.2,0.1192]
[1758591252214,2.38578074,4191.5,4189.2,0.0448]
[1758591252215,3.792,4191.4,4189.2,2.38708049]
[1758591252522,5.38595151,4191.2,4189.2,0.0488]
[1758591252681,10.26636864,4191.2,4189.8,2.38674635]
[1758591252880,6.94546864,4191.2,4189.6,0.02386862]
[1758591253082,13.02246864,4191.2,4189.9,2.38664093]
[1758591253282,13.52810415,4191.2,4190.0,2.38662253]
[1758591253483,15.97094175,4191.2,4189.9,2.38669031]
[1758591254178,10.88275157,4191.2,4190.0,0.02386634]
[1758591254488,10.50291397,4191.2,4189.7,0.0488]
[1758591254995,10.50080757,4191.2,4189.7,0.0488]
[1758591255386,10.50080757,4191.2,4190.4,2.38635627]
[1758591255581,10.50080757,4191.2,4190.1,2.40656955]
[1758591255582,12.88675908,4191.2,4190.2,2.38646575]
[1758591255782,10.50080757,4191.2,4190.1,2.40656955]
[1758591256314,12.88675908,4191.2,4190.3,2.3864566]
[1758591256527,5.90161432,4191.2,4190.3,2.4103098]
[1758591256819,10.50980757,4191.2,4190.2,0.0488]
[1758591257117,9.7761,4191.2,4190.5,2.3863399]
[1758591258958,9.7761,4191.2,4190.6,2.38629089]
[1758591259716,6.077,4191.2,4191.1,0.024]
[1758591260712,5.62262858,4191.6,4191.1,0.024]
[1758591260713,3.2369,4191.6,4191.1,0.024]
[1758591260914,3.0,4191.7,4191.1,0.024]
[1758591261126,6.076,4191.6,4191.1,0.024]
[1758591261451,4.014,4191.5,4191.1,0.024]
[1758591262220,7.014,4191.5,4191.4,0.1192]
[1758591262821,4.014,4191.5,4191.4,0.1192]
[1758591264914,6.077,4191.5,4191.4,0.1192]
[1758591268321,6.7751,4191.5,4191.4,0.1192]
[1758591268861,0.6981,4191.5,4191.4,0.1192]
[1758591269157,6.7721,4191.5,4191.4,0.1192]
[1758591269460,6.99389273,4191.5,4191.4,0.1192]
[1758591272253,7.50508475,4191.5,4191.4,0.1192]
[1758591272832,0.22179273,4191.5,4191.4,2.50503766]
[1758591273052,4.009,4191.5,4191.4,2.50503766]
[1758591273357,0.63975424,4192.4,4191.4,0.61070382]
[1758591273523,2.063,4191.9,4191.8,2.38561]
[1758591273721,0.1202,4192.4,4191.8,2.38561]
[1758591273927,6.80430934,4192.3,4192.2,0.1192]
[1758591274148,7.50240934,4192.3,4192.2,0.1192]
[1758591276773,7.50340934,4192.3,4192.2,0.1192]
[1758591277071,10.63917939,4192.3,4191.4,2.38580572]
[1758591277274,1.43140934,4192.2,4191.9,0.1192]
[1758591277457,4.74330934,4192.1,4191.7,0.1192]
[1758591277631,0.73330934,4192.0,4191.7,0.1192]
[1758591277839,4.74330934,4191.9,4191.7,0.1192]
[1758591278152,0.73403474,4191.8,4191.7,0.1192]
[1758591278338,4.74303474,4191.8,4191.7,2.50486691]
[1758591278731,0.73403474,4191.8,4191.7,2.50486691]
[1758591278969,4.74303474,4191.8,4191.7,2.50486691]
[1758591279958,5.42363821,4191.8,4191.7,0.1192]
[1758591280160,5.42363821,4191.8,4191.4,0.1192]
[1758591280161,8.50736693,4191.8,4191.4,0.1192]
[1758591280344,0.73403474,4191.7,4191.4,0.1192]
[1758591280548,4.74303474,4191.6,4191.4,0.1192]
[1758591280751,0.73403474,4191.5,4191.4,0.1192]
[1758591280949,0.51209281,4191.5,4191.4,0.1192]
[1758591281265,0.73448901,4191.5,4191.4,0.1192]
[1758591283072,4.74348901,4191.5,4191.4,0.1192]
[1758591283767,4.74348901,4191.5,4191.4,2.50503766]
[1758591285436,4.74348901,4191.5,4191.4,0.1192]
[1758591285638,6.12643791,4191.5,4191.4,0.1192]
[1758591286175,9.27153467,4191.5,4191.1,0.024]
[1758591286474,0.73448901,4191.4,4191.1,0.024]
[1758591286649,4.74248901,4191.3,4191.1,0.024]
[1758591286856,0.73448901,4191.2,4191.1,0.024]
[1758591287292,1.43678901,4191.2,4191.1,0.024]
[1758591288083,4.74248901,4191.2,4191.1,2.52920844]
[1758591288292,0.73448901,4191.2,4191.1,2.52920844]
[1758591288446,4.007,4191.2,4191.1,2.52920844]
[1758591288646,4.74278745,4191.2,4191.1,2.52920844]
[1758591288852,0.73578745,4191.2,4191.1,2.55306852]
[1758591289055,4.008,4191.2,4191.1,2.55306852]
[1758591289255,4.74391764,4191.2,4191.1,2.55306852]
[1758591290190,4.007,4191.2,4191.1,2.52920844]
[1758591290681,4.007,4191.2,4191.1,3.02073872]
[1758591290885,4.007,4191.2,4191.1,3.06953872]
[1758591291271,4.007,4191.2,4191.1,3.02073872]
[1758591294388,4.5203028,4191.2,4191.1,3.02073872]
[1758591294591,4.007,4191.2,4191.1,3.02073872]
[1758591295572,2.064,4191.5,4191.4,2.38583766]
[1758591295573,0.001,4191.5,4191.4,2.38583766]
[1758591295754,4.74310177,4191.5,4191.4,3.05056961]
[1758591296151,4.74310177,4191.5,4191.4,0.1192]
[1758591296497,5.44540177,4191.5,4191.4,0.1192]
[1758591296708,5.44540177,4191.5,4191.4,2.50503766]
[1758591297679,5.44540177,4191.5,4191.4,0.1192]
[1758591298495,4.74310177,4191.5,4191.4,2.50503766]
[1758591298687,0.73710177,4191.5,4191.4,2.9965364]
[1758591298889,0.73710177,4191.5,4191.4,2.50503766]
[1758591298890,4.74410177,4191.5,4191.4,2.50503766]
[1758591299363,5.44640177,4191.5,4191.4,0.1192]
[1758591299565,4.74410177,4191.5,4191.4,0.1192]
[1758591299799,5.44640177,4191.5,4191.4,0.1192]
[1758591300568,1.43940177,4191.5,4191.4,2.50503766]
[1758591300912,4.52231465,4191.5,4191.4,2.76032743]
[1758591301074,4.009,4191.5,4191.4,2.76032743]
[1758591302604,4.23172482,4191.5,4191.4,0.1192]
[1758591302809,5.44718151,4191.5,4191.4,0.1192]
[1758591303197,5.44718151,4191.5,4191.4,2.50503766]
[1758591303398,5.44719811,4191.5,4191.4,2.50503766]
[1758591303713,5.22445669,4191.5,4191.4,2.50503766]
[1758591304593,6.073,4191.5,4191.4,2.50503766]
[1758591305808,6.58631269,4191.5,4191.4,2.50503766]
[1758591306716,4.52331269,4191.5,4191.4,2.50503766]
[1758591306918,4.01,4191.5,4191.4,2.50503766]
[1758591307427,4.52335332,4191.5,4191.4,2.50503766]
[1758591308220,4.01,4191.5,4191.4,2.50503766]
[1758591308723,0.001,4191.5,4191.4,3.83733579]
[1758591309032,0.001,4191.5,4191.4,3.78853579]
[1758591309236,0.001,4191.5,4191.4,2.50503766]
[1758591309403,4.008,4191.5,4191.4,2.50503766]
[1758591309597,4.7103,4191.5,4191.4,2.50503766]
[1758591309937,5.44631868,4191.5,4191.4,2.50503766]
[1758591310302,7.50931868,4191.5,4191.4,0.1192]
[1758591310636,7.50931868,4191.5,4191.1,0.024]
[1758591310637,8.45789985,4191.5,4191.1,0.024]
[1758591310815,1.37751135,4191.4,4191.1,0.024]
[1758591311138,4.74701868,4191.3,4191.1,0.024]
[1758591311336,0.73601868,4191.2,4191.1,0.024]
[1758591311936,1.43831868,4191.2,4191.1,0.024]
[1758591317751,4.74601868,4191.2,4191.1,0.024]
[1758591317912,6.80701868,4191.2,4191.1,2.52920844]
[1758591318613,7.48581868,4191.2,4191.1,0.1432]
[1758591319104,7.48581868,4191.2,4191.1,0.024]
[1758591320122,7.48581868,4191.2,4191.1,2.41000844]
[1758591320339,7.48581868,4191.2,4191.1,0.024]
[1758591322736,14.54581868,4191.2,4191.1,0.024]
[1758591323070,7.79601868,4191.2,4191.1,0.024]
[1758591323228,11.80201868,4191.2,4191.1,2.41000844]
[1758591324127,11.80201868,4191.2,4191.1,2.90392394]
[1758591324128,4.74201868,4191.2,4191.1,2.90392394]
[1758591324331,4.51925561,4191.2,4191.1,3.07192394]
[1758591324760,4.51925561,4191.2,4191.1,3.02312394]
[1758591325540,4.51925561,4191.2,4191.1,3.07192394]
[1758591325867,4.006,4191.2,4191.1,3.07192394]
[1758591326272,4.006,4191.2,4191.1,3.02312394]
[1758591328674,0.001,4191.5,4191.4,2.38583766]
[1758591328970,4.74149822,4191.5,4191.4,0.1192]
[1758591329551,5.42029822,4191.5,4191.4,0.1192]
[1758591329746,6.06179089,4191.5,4191.1,0.024]
[1758591330075,1.18569822,4191.4,4191.1,0.024]
[1758591330284,4.74249822,4191.3,4191.1,0.024]
[1758591330491,0.73549822,4191.2,4191.1,0.024]
[1758591330787,1.18569822,4191.2,4191.1,0.024]
[1758591331146,1.41429822,4191.2,4191.1,0.024]
[1758591331785,2.05579089,4191.2,4191.1,0.024]
[1758591332898,6.80449822,4191.2,4191.1,0.024]
[1758591334157,0.73549822,4191.2,4191.1,0.024]
[1758591334316,4.74149822,4191.2,4191.1,2.52920844]
[1758591334493,4.74149822,4191.2,4191.1,0.1432]
[1758591334671,5.42029822,4191.2,4191.1,0.1432]
[1758591335774,5.42029822,4191.2,4191.1,2.52920844]
[1758591336095,5.42029822,4191.2,4191.1,0.1432]
[1758591338530,5.42050225,4191.2,4191.1,0.1432]
[1758591339199,4.74170225,4191.2,4191.1,0.1432]
[1758591339457,5.42050225,4191.2,4191.1,0.1432]
[1758591339743,6.36681961,4191.2,4191.1,0.024]
[1758591340456,13.42681961,4191.2,4191.1,0.024]
[1758591341416,15.81277112,4191.2,4191.1,0.024]
[1758591341733,15.93197112,4191.2,4191.1,0.024]
[1758591341907,15.93206952,4191.2,4191.1,0.024]
[1758591343151,16.78518195,4191.2,4191.1,0.024]
[1758591343511,13.54611801,4191.2,4191.1,0.024]
[1758591344146,16.78518195,4191.2,4191.1,0.024]
[1758591344643,15.93206952,4191.2,4191.1,0.024]
[1758591344942,16.78518195,4191.2,4191.1,0.024]
[1758591345337,13.54611801,4191.2,4191.1,0.024]
[1758591345761,16.78518195,4191.2,4191.1,0.024]
[1758591346067,13.54611801,4191.2,4191.1,0.024]
[1758591346557,15.93206952,4191.2,4191.1,0.024]
[1758591346760,16.78514237,4191.2,4191.1,0.024]
[1758591347263,15.93202994,4191.2,4191.1,0.024]
[1758591347441,16.7874279,4191.2,4191.1,0.024]
[1758591347958,18.93202994,4191.2,4191.1,0.024]
[1758591348158,20.21292033,4191.2,4191.1,0.024]
[1758591348361,18.93202994,4191.2,4191.1,0.024]
[1758591348965,11.87202994,4191.2,4191.1,0.024]
[1758591350467,10.90961192,4191.2,4191.1,0.024]
[1758591350662,10.79041192,4191.2,4191.1,0.024]
[1758591351462,13.17636343,4191.2,4191.1,0.024]
[1758591351625,13.86186343,4191.2,4191.1,0.024]
[1758591352669,4.72441192,4191.2,4191.1,0.024]
[1758591352978,10.79141192,4191.2,4191.1,0.024]
[1758591353181,14.76542866,4191.2,4191.1,0.024]
[1758591354984,10.79111854,4191.2,4191.1,0.024]
[1758591355279,7.87318556,4191.2,4191.1,0.024]
[1758591355441,9.93618556,4191.2,4191.1,0.024]
[1758591357770,3.86918556,4191.2,4191.1,0.024]
[1758591358076,6.80150727,4191.2,4191.1,0.024]
[1758591358443,7.44289751,4191.2,4191.1,0.024]
[1758591359582,0.73550727,4191.2,4191.1,2.83332009]
[1758591359741,4.73850727,4191.2,4191.1,2.83332009]
[1758591360147,4.73850727,4191.2,4191.1,0.39851165]
[1758591360641,4.73850727,4191.2,4191.1,2.78452009]
[1758591360868,0.73550727,4191.2,4191.1,2.52920844]
[1758591361182,4.73850727,4191.2,4191.1,2.57800844]
[1758591362184,4.73868631,4191.2,4191.1,2.57800844]
[1758591362487,4.73868631,4191.2,4191.1,2.52920844]
[1758591364000,4.73868631,4191.2,4191.1,0.1432]
[1758591364250,5.42418631,4191.2,4191.1,0.1432]
[1758591364683,4.73868631,4191.2,4191.1,0.1432]
[1758591365279,5.42418631,4191.2,4191.1,0.1432]
[1758591365939,7.23632016,4191.2,4191.1,0.024]
[1758591366090,6.59492992,4191.2,4191.1,0.024]
[1758591366501,9.11453241,4191.2,4191.1,0.024]
[1758591366929,9.96946539,4191.2,4191.1,0.024]
[1758591367487,12.96946539,4191.2,4191.1,0.024]
[1758591367835,12.11453241,4191.2,4191.1,0.024]
[1758591368436,18.38132618,4191.2,4191.1,0.024]
[1758591371524,12.11453241,4191.2,4191.1,0.024]
[1758591374829,9.7285809,4191.2,4191.1,0.024]
[1758591375044,8.84694636,4191.2,4191.1,0.024]
[1758591375335,6.93533729,4191.2,4191.1,0.024]
[1758591376316,0.86933729,4191.2,4191.1,2.52920844]
[1758591376511,4.73868631,4191.2,4191.1,0.1432]
[1758591377425,6.08187529,4191.2,4191.1,0.024]
[1758591377953,5.38037529,4191.2,4191.1,0.024]
[1758591378541,2.79868631,4191.2,4191.1,0.1432]
[1758591378744,0.73568631,4191.2,4191.1,2.57800844]
[1758591379069,4.73868631,4191.2,4191.1,0.1432]
[1758591379728,6.08187529,4191.2,4191.1,0.024]
[1758591380056,5.5738549,4191.2,4191.1,0.024]
[1758591380364,5.57386268,4191.2,4191.1,0.024]
[1758591380722,4.87236268,4191.2,4191.1,0.024]
[1758591381030,5.38033581,4191.2,4191.1,0.024]
[1758591381356,7.44333581,4191.2,4191.1,0.1432]
[1758591382372,1.37733581,4191.2,4191.1,2.52920844]
[1758591382666,6.80172326,4191.2,4191.1,2.52920844]
[1758591383663,7.50322326,4191.2,4191.1,0.1432]
[1758591383878,7.50322326,4191.2,4191.1,0.024]
[1758591385240,8.14487276,4191.2,4191.1,0.024]
[1758591385934,0.73572326,4191.2,4191.1,0.024]
[1758591386155,4.73972326,4191.2,4191.1,2.52920844]
[1758591386646,4.73971245,4191.2,4191.1,2.52920844]
[1758591386866,0.73571245,4191.2,4191.1,2.52920844]
[1758591387076,4.73971245,4191.2,4191.1,3.07442132]
[1758591387242,4.73971245,4191.2,4191.1,0.1432]
[1758591388974,4.73971245,4191.2,4191.1,2.52920844]
[1758591389478,4.73971245,4191.2,4191.1,0.1432]
[1758591391513,6.08286195,4191.2,4191.1,0.1432]
[1758591391671,6.08286195,4191.2,4191.1,0.024]
[1758591391875,7.86267824,4191.2,4191.1,0.024]
[1758591392076,7.22102874,4191.2,4191.1,0.024]
[1758591392277,7.86267824,4191.2,4191.1,0.024]
[1758591394902,7.86266277,4191.2,4191.1,0.024]
[1758591397514,14.12945654,4191.2,4191.1,0.024]
[1758591397816,16.12665089,4191.2,4191.1,0.024]
[1758591400300,16.98252036,4191.2,4191.1,0.024]
[1758591400609,9.85985712,4191.2,4191.1,0.024]
[1758591404527,9.85991105,4191.2,4191.1,0.024]
[1758591408935,9.03821105,4191.2,4191.1,0.024]
[1758591409142,11.22041105,4191.2,4191.1,0.024]
[1758591409419,11.93601105,4191.2,4191.1,0.024]
[1758591411550,2.76845954,4191.2,4191.1,0.024]
[1758591411730,7.9103635,4191.2,4191.1,0.024]
[1758591412734,10.29631501,4191.2,4191.1,0.024]
[1758591413028,7.9103635,4191.2,4191.1,0.024]
[1758591413243,8.1558635,4191.2,4191.1,0.024]
[1758591413447,11.01191501,4191.2,4191.1,0.024]
[1758591413642,12.49179955,4191.2,4191.1,0.024]
[1758591415980,6.42579955,4191.2,4191.1,0.024]
[1758591416168,12.49179955,4191.2,4191.1,0.024]
[1758591417181,11.6360793,4191.2,4191.1,0.024]
[1758591418573,9.25012779,4191.2,4191.1,0.024]
[1758591418880,8.78002779,4191.2,4191.1,0.024]
[1758591419446,11.1659793,4191.2,4191.1,0.024]
[1758591420861,11.6360793,4191.2,4191.1,0.024]
[1758591422201,6.93544325,4191.2,4191.1,0.024]
[1758591423178,0.86944325,4191.2,4191.1,0.024]
[1758591423381,0.86944325,4191.2,4191.1,0.0728]
[1758591423581,7.44350276,4191.2,4191.1,0.192]
[1758591423782,6.80169698,4191.2,4191.1,0.192]
[1758591424781,6.93538599,4191.2,4191.1,0.024]
[1758591424982,7.18088599,4191.2,4191.1,0.024]
[1758591425498,7.18093033,4191.2,4191.1,0.024]
[1758591426162,6.93543033,4191.2,4191.1,0.024]
[1758591428063,7.79133348,4191.2,4191.1,0.024]
[1758591428285,0.86943033,4191.2,4191.1,0.024]
[1758591428492,0.86943033,4191.2,4191.1,2.45880844]
[1758591428493,4.73874132,4191.2,4191.1,2.45880844]
[1758591428685,4.73874132,4191.2,4191.1,2.94330058]
[1758591429193,4.51590608,4191.2,4191.1,2.94330058]
[1758591429416,4.51590608,4191.2,4191.1,0.50849214]
[1758591429705,5.37996423,4191.2,4191.1,0.024]
[1758591430115,1.37696423,4191.2,4191.1,0.024]
[1758591430422,7.44296423,4191.2,4191.1,0.024]
[1758591431619,10.03670851,4191.2,4191.1,0.024]
[1758591432187,10.89261166,4191.2,4191.1,0.024]
[1758591432388,12.86016059,4191.2,4191.1,0.024]
[1758591433096,12.00425744,4191.2,4191.1,0.024]
[1758591434713,12.12345744,4191.2,4191.1,0.024]
[1758591436336,13.40434783,4191.2,4191.1,0.024]
[1758591436706,15.12345744,4191.2,4191.1,0.024]
[1758591436911,2.38623618,4190.7,4190.6,0.004]
[1758591437113,18.1067563,4190.7,4190.6,0.004]
[1758591437435,18.7630563,4190.7,4190.6,0.004]
[1758591438310,18.88227903,4190.7,4190.6,0.004]
[1758591438695,18.88229911,4190.7,4190.6,0.004]
[1758591439302,20.16425046,4190.7,4190.6,0.004]
[1758591441400,18.88229911,4190.7,4190.6,0.004]
[1758591446244,11.63037538,4190.7,4190.6,0.004]
[1758591446446,13.03807538,4190.7,4190.6,0.004]
[1758591446663,13.8917476,4190.7,4190.6,0.004]
[1758591447358,13.69437538,4190.7,4190.6,0.004]
[1758591449558,14.54748873,4190.7,4190.6,0.004]
[1758591451373,13.69437538,4190.7,4190.6,0.004]
[1758591453269,14.97632673,4190.7,4190.6,0.004]
[1758591453475,13.69437538,4190.7,4190.6,0.004]
[1758591454372,14.97632673,4190.7,4190.6,0.004]
[1758591455175,13.69437538,4190.7,4190.6,0.004]
[1758591455875,10.97407538,4190.7,4190.6,0.004]
[1758591456075,13.89128433,4190.7,4190.6,0.004]
[1758591456654,13.69437538,4190.7,4190.6,0.004]
[1758591456896,14.97632673,4190.7,4190.6,0.004]
[1758591457187,2.38646397,4190.3,4190.2,0.004]
[1758591457396,11.89565064,4190.3,4190.2,0.004]
[1758591457549,12.55195064,4190.3,4190.2,0.004]
[1758591457751,12.64761753,4190.3,4190.2,0.004]
[1758591459499,11.36771763,4190.3,4190.2,0.004]
[1758591461355,13.86538399,4190.3,4190.2,0.004]
[1758591461685,14.20037961,4190.3,4190.2,0.004]
[1758591462046,14.20037961,4190.3,4188.3,2.43636085]
[1758591462047,0.792,4190.1,4188.3,0.0488]
[1758591462253,3.35972178,4189.2,4188.3,0.0488]
[1758591462462,10.29516215,4189.2,4188.3,0.0488]
[1758591462787,17.22494105,4189.2,4188.3,0.0488]
[1758591463387,20.22494105,4189.2,4188.3,0.0488]
[1758591463580,22.62807096,4189.2,4188.3,0.0488]
[1758591463786,21.97177096,4189.2,4188.3,0.0488]
[1758591464683,15.69829206,4189.2,4188.3,0.0488]
[1758591464847,15.69829206,4189.2,4188.5,0.0488]
[1758591465271,14.84486089,4189.2,4188.5,0.0488]
[1758591465580,12.45777028,4189.2,4188.5,2.43623518]
[1758591465819,14.84486089,4189.2,4188.5,0.0488]
[1758591467123,14.71153553,4189.2,4188.5,0.0488]
[1758591467292,9.92131501,4189.2,4188.5,2.43624217]
[1758591468118,9.92131501,4189.2,4188.7,0.0488]
[1758591468319,9.92131501,4189.2,4188.5,2.38747979]
[1758591468504,9.92131501,4189.2,4189.1,0.0688]
[1758591468915,9.92131501,4189.2,4189.1,0.0728]
[1758591469120,12.30840562,4189.2,4189.1,0.024]
[1758591469416,20.23437634,4189.2,4189.1,0.024]
[1758591470118,19.53267634,4189.2,4189.1,0.024]
[1758591470789,21.22098339,4189.2,4189.1,0.024]
[1758591471521,20.23437634,4189.2,4189.1,0.024]
[1758591471915,20.36754308,4189.2,4189.1,0.024]
[1758591472084,21.22097425,4189.2,4189.1,0.024]
[1758591473025,21.2196889,4189.2,4189.1,0.024]
[1758591473826,21.2196889,4189.2,4189.1,1e-08]
[1758591473827,27.43302198,4189.2,4189.1,1e-08]
[1758591474029,27.43302198,4189.2,4188.1,0.02]
[1758591474030,2.38766057,4188.2,4188.1,0.02]
[1758591474240,9.19077558,4188.2,4188.1,0.02]
[1758591474596,8.96856665,4188.2,4188.1,0.02]
[1758591478949,6.58090608,4188.2,4188.1,0.02]
[1758591479307,6.70010608,4188.2,4188.1,0.02]
[1758591479807,9.08776665,4188.2,4188.1,0.02]
[1758591483045,4.63610608,4188.2,4188.1,0.02]
[1758591483346,6.70110608,4188.2,4188.1,0.0688]
[1758591483512,6.70110608,4188.2,4188.1,0.02]
[1758591484923,0.51290608,4188.2,4188.1,0.02]
[1758591485256,6.58190608,4188.2,4188.1,0.0688]
[1758591486040,6.58190608,4188.2,4188.1,0.02]
[1758591486240,6.8039928,4188.2,4188.1,0.02]
[1758591486560,0.7349928,4188.2,4188.1,0.02]
[1758591486762,4.51690608,4188.2,4188.1,0.3144688]
[1758591487061,4.51690608,4188.2,4188.1,0.188]
[1758591488041,4.51690608,4188.2,4188.1,0.192]
[1758591489335,0.51290608,4188.2,4188.1,2.60359475]
[1758591489566,4.51690608,4188.2,4188.1,2.86395423]
[1758591490070,4.51690608,4188.2,4188.1,2.84007706]
[1758591494846,4.51690608,4188.2,4188.1,0.40355948]
[1758591495173,5.21860608,4188.2,4188.1,0.024]
[1758591495488,14.88862582,4188.2,4188.1,0.024]
[1758591495685,8.81401674,4188.2,4188.1,0.024]
[1758591497093,7.96202904,4188.2,4188.1,0.024]
[1758591497250,9.77362408,4188.2,4188.1,0.024]
[1758591497783,12.77362408,4188.2,4188.1,0.024]
[1758591499086,2.38794565,4187.7,4187.6,0.004]
[1758591499288,18.59909302,4187.7,4187.6,0.004]
[1758591499489,21.37228868,4187.7,4187.6,0.004]
[1758591501371,22.65086891,4187.7,4187.6,0.004]
[1758591501680,21.37228868,4187.7,4187.6,0.004]
[1758591503502,22.65018021,4187.7,4187.6,0.004]
[1758591504603,21.37228868,4187.7,4187.6,0.004]
[1758591506683,22.22379782,4187.7,4187.6,0.004]
[1758591508004,22.22343187,4187.7,4187.6,0.004]
[1758591508978,21.49112273,4187.7,4187.6,0.004]
[1758591511875,15.18222273,4187.7,4187.6,0.004]
[1758591512080,14.54314383,4187.7,4187.6,0.004]
[1758591512282,14.41010656,4187.7,4187.6,0.004]
[1758591512477,14.65000656,4187.7,4187.6,0.004]
[1758591513015,15.08460656,4187.7,4187.6,0.004]
[1758591513210,21.35808546,4187.7,4187.6,0.004]
[1758591513413,21.49107118,4187.7,4187.6,0.004]
[1758591513720,22.34226257,4187.7,4187.6,0.004]
[1758591516924,16.06878367,4187.7,4187.6,0.004]
[1758591517131,22.34226257,4187.7,4187.6,0.004]
[1758591517932,14.41010656,4187.7,4187.6,0.004]
[1758591518130,12.3114109,4187.7,4187.6,0.004]
[1758591521141,12.44458904,4187.7,4187.6,0.004]
[1758591521503,10.05664339,4187.7,4187.6,0.004]
[1758591521730,12.44458904,4187.7,4187.6,0.004]
[1758591522127,19.80915933,4187.7,4187.6,0.004]
[1758591522330,23.08973296,4187.7,4187.6,0.004]
[1758591522625,22.80493274,4187.7,4187.6,0.004]
[1758591524463,2.38823079,4187.2,4187.1,0.02]
[1758591524629,5.84561166,4187.2,4187.1,0.02]
[1758591524830,8.23384245,4187.2,4187.1,0.02]
[1758591525053,7.24669604,4187.2,4187.1,0.02]
[1758591525259,7.38020005,4187.2,4187.1,0.02]
[1758591525464,8.23416832,4187.2,4187.1,0.02]
[1758591526364,8.52311583,4187.2,4187.1,0.024]
[1758591526551,10.50716823,4187.2,4187.1,0.024]
[1758591526753,9.22621583,4187.2,4187.1,0.024]
[1758591527064,7.26100005,4187.2,4187.1,0.024]
[1758591528358,9.32600005,4187.2,4187.1,0.024]
[1758591529886,10.60695245,4187.2,4187.1,0.024]
[1758591530185,9.32600005,4187.2,4187.1,0.024]
[1758591530385,10.60695245,4187.2,4187.1,0.024]
[1758591532149,4.53795245,4187.2,4187.1,0.024]
[1758591532387,10.60695245,4187.2,4187.1,0.024]
[1758591532958,8.54195245,4187.2,4187.1,0.024]
[1758591533163,4.53795245,4187.2,4187.1,0.024]
[1758591533374,10.60695245,4187.2,4187.1,0.024]
[1758591536058,8.21872166,4187.2,4187.1,0.024]
[1758591536259,9.32600005,4187.2,4187.1,0.024]
[1758591536496,9.44520005,4187.2,4187.1,0.024]
[1758591536796,3.37620005,4187.2,4187.1,0.024]
[1758591536982,9.44520005,4187.2,4187.1,0.024]
[1758591539473,7.05696926,4187.2,4187.1,0.024]
[1758591539688,9.44520005,4187.2,4187.1,0.024]
[1758591539891,7.05696926,4187.2,4187.1,0.024]
[1758591540404,9.44520005,4187.2,4187.1,0.024]
[1758591540949,9.44535943,4187.2,4187.1,0.024]
[1758591542372,0.86892864,4187.2,4187.1,0.024]
[1758591542576,5.38094068,4187.2,4187.1,0.0728]
[1758591542807,4.73926525,4187.2,4187.1,0.024]
[1758591543008,9.70496037,4187.2,4187.1,0.024]
[1758591544945,8.84944503,4187.2,4187.1,0.024]
[1758591545098,10.13039743,4187.2,4187.1,0.024]
[1758591546533,9.36441937,4187.2,4187.1,0.024]
[1758591547108,7.38036697,4187.2,4187.1,0.024]
[1758591547698,8.08346697,4187.2,4187.1,0.024]
[1758591548134,12.36441937,4187.2,4187.1,0.024]
[1758591548329,10.38036697,4187.2,4187.1,0.024]
[1758591549333,11.94594597,4187.2,4187.1,0.024]
[1758591550028,12.64904597,4187.2,4187.1,0.024]
[1758591550598,2.38866425,4186.5,4186.1,0.02]
[1758591550794,5.37997751,4186.4,4186.1,0.02]
[1758591550994,0.73526525,4186.3,4186.1,0.02]
[1758591551305,4.73826525,4186.2,4186.1,0.02]
[1758591552257,15.41484644,4186.2,4186.1,0.02]
[1758591552540,17.40137097,4186.2,4186.1,0.02]
[1758591553203,16.11794644,4186.2,4186.1,0.02]
[1758591553540,8.85137623,4186.2,4186.1,0.02]
[1758591553931,11.85137623,4186.2,4186.1,0.02]
[1758591554134,12.43170076,4186.2,4186.1,0.02]
[1758591554308,11.14827623,4186.2,4186.1,0.02]
[1758591554948,8.75947494,4186.2,4186.1,0.02]
[1758591555134,11.14827623,4186.2,4186.1,0.02]
[1758591557162,8.625803,4186.2,4186.1,0.02]
[1758591557832,11.01460429,4186.2,4186.1,0.02]
[1758591558033,12.70803717,4186.2,4186.1,0.02]
[1758591558524,11.85434741,4186.2,4186.1,0.02]
[1758591559441,11.72100429,4186.2,4186.1,0.02]
[1758591559638,9.332203,4186.2,4186.1,0.02]
[1758591560036,11.72100429,4186.2,4186.1,0.02]
[1758591560562,12.7079503,4186.2,4186.1,0.02]
[1758591560739,11.72100429,4186.2,4186.1,0.02]
[1758591560942,11.85426254,4186.2,4186.1,0.02]
[1758591561137,11.72100429,4186.2,4186.1,0.02]
[1758591561463,9.332203,4186.2,4186.1,0.02]